Workbook

Sheet Costs
A2: Average Monthly Burn | B2: =-(V39/12) -> -33202.77778
A3: Cash Available (Capital) | B3: 300000
A4: How many months you have until cash will be burned totally | B4: =-(B3/B2) -> 9.035388605
A6: Salaries:
A7: Title | B7: Annual Salary | C7: Bonus | D7: Salary + Bonus | E7: Date Hired | F7: 2018-01-15 | G7: 2018-02-15 | H7: 2018-03-15 | I7: Q1 2018 | J7: 2018-04-15 | K7: 2018-05-15 | L7: 2018-06-15 | M7: Q2 2018 | N7: 2018-07-15 | O7: 2018-08-15 | P7: 2018-09-15 | Q7: Q3 2018 | R7: 2018-10-15 | S7: 2018-11-15 | T7: 2018-12-15 | U7: Q4 2018 | V7: FY 2018
A8: CEO | B8: 80000 | C8: 0.09 | D8: =B8+(B8*C8) -> 87200 | E8: 2018-01-01 | F8: =IF($E8<=F$7, $D8/12, 0) -> 7266.666667 | G8: 7266.666667 | H8: 7266.666667 | I8: =SUM(F8:H8) -> 21800 | J8: =IF($E8<=J$7, $D8/12, 0) -> 7266.666667 | K8: 7266.666667 | L8: 7266.666667 | M8: =SUM(J8:L8) -> 21800 | N8: =IF($E8<=N$7, $D8/12, 0) -> 7266.666667 | O8: 7266.666667 | P8: 7266.666667 | Q8: =SUM(N8:P8) -> 21800 | R8: =IF($E8<=R$7, $D8/12, 0) -> 7266.666667 | S8: 7266.666667 | T8: 7266.666667 | U8: =SUM(R8:T8) -> 21800 | V8: =I8+M8+Q8+U8 -> 87200
A9: CTO | B9: 80000 | C9: 0.09 | D9: 87200 | E9: 2018-01-01 | F9: 7266.666667 | G9: 7266.666667 | H9: 7266.666667 | I9: 21800 | J9: 7266.666667 | K9: 7266.666667 | L9: 7266.666667 | M9: 21800 | N9: 7266.666667 | O9: 7266.666667 | P9: 7266.666667 | Q9: 21800 | R9: 7266.666667 | S9: 7266.666667 | T9: 7266.666667 | U9: 21800 | V9: 87200
A10: Engineer 1 | B10: 80000 | C10: 0.09 | D10: 87200 | E10: 2018-04-01 | F10: 0 | G10: 0 | H10: 0 | I10: 0 | J10: 7266.666667 | K10: 7266.666667 | L10: 7266.666667 | M10: 21800 | N10: 7266.666667 | O10: 7266.666667 | P10: 7266.666667 | Q10: 21800 | R10: 7266.666667 | S10: 7266.666667 | T10: 7266.666667 | U10: 21800 | V10: 65400
A11: Engineer 2 | B11: 80000 | C11: 0.09 | D11: 87200 | E11: 2018-04-01 | F11: 0 | G11: 0 | H11: 0 | I11: 0 | J11: 7266.666667 | K11: 7266.666667 | L11: 7266.666667 | M11: 21800 | N11: 7266.666667 | O11: 7266.666667 | P11: 7266.666667 | Q11: 21800 | R11: 7266.666667 | S11: 7266.666667 | T11: 7266.666667 | U11: 21800 | V11: 65400
A12: Designer | B12: 80000 | C12: 0.09 | D12: 87200 | E12: 2018-05-01 | F12: 0 | G12: 0 | H12: 0 | I12: 0 | J12: 0 | K12: 7266.666667 | L12: 7266.666667 | M12: 14533.33333 | N12: 7266.666667 | O12: 7266.666667 | P12: 7266.666667 | Q12: 21800 | R12: 7266.666667 | S12: 7266.666667 | T12: 7266.666667 | U12: 21800 | V12: 58133.33333
A13: Add more | B13: 0 | C13: 0.09 | D13: 0 | F13: 0 | G13: 0 | H13: 0 | I13: 0 | J13: 0 | K13: 0 | L13: 0 | M13: 0 | N13: 0 | O13: 0 | P13: 0 | Q13: 0 | R13: 0 | S13: 0 | T13: 0 | U13: 0 | V13: 0
A14: Add more | B14: 0 | C14: 0.09 | D14: 0 | F14: 0 | G14: 0 | H14: 0 | I14: 0 | J14: 0 | K14: 0 | L14: 0 | M14: 0 | N14: 0 | O14: 0 | P14: 0 | Q14: 0 | R14: 0 | S14: 0 | T14: 0 | U14: 0 | V14: 0
A15: Add more | B15: 0 | C15: 0.09 | D15: 0 | F15: 0 | G15: 0 | H15: 0 | I15: 0 | J15: 0 | K15: 0 | L15: 0 | M15: 0 | N15: 0 | O15: 0 | P15: 0 | Q15: 0 | R15: 0 | S15: 0 | T15: 0 | U15: 0 | V15: 0
A16: Add more | B16: 0 | C16: 0.09 | D16: 0 | F16: 0 | G16: 0 | H16: 0 | I16: 0 | J16: 0 | K16: 0 | L16: 0 | M16: 0 | N16: 0 | O16: 0 | P16: 0 | Q16: 0 | R16: 0 | S16: 0 | T16: 0 | U16: 0 | V16: 0
A17: Add more | B17: 0 | C17: 0.09 | D17: 0 | F17: 0 | G17: 0 | H17: 0 | I17: 0 | J17: 0 | K17: 0 | L17: 0 | M17: 0 | N17: 0 | O17: 0 | P17: 0 | Q17: 0 | R17: 0 | S17: 0 | T17: 0 | U17: 0 | V17: 0
A18: Total: | B18: =SUM(B8:B17) -> 400000 | F18: =SUM(F8:F17) -> 14533.33333 | G18: 14533.33333 | H18: 14533.33333 | I18: 43600 | J18: 29066.66667 | K18: 36333.33333 | L18: 36333.33333 | M18: 101733.3333 | N18: 36333.33333 | O18: 36333.33333 | P18: 36333.33333 | Q18: 109000 | R18: 36333.33333 | S18: 36333.33333 | T18: 36333.33333 | U18: 109000 | V18: 363333.3333
A19: Number of people in team | F19: =COUNTIF(F8:F17,">0") -> 2 | G19: 2 | H19: 2 | I19: 2 | J19: 4 | K19: 5 | L19: 5 | M19: 5 | N19: 5 | O19: 5 | P19: 5 | Q19: 5 | R19: 5 | S19: 5 | T19: 5 | U19: 5 | V19: 5
A22: Office:
A23: Title | B23: Annual | E23: Start Date | F23: 2018-01-15 | G23: 2018-02-15 | H23: 2018-03-15 | I23: Q1 2018 | J23: 2018-04-15 | K23: 2018-05-15 | L23: 2018-06-15 | M23: Q2 2018 | N23: 2018-07-15 | O23: 2018-08-15 | P23: 2018-09-15 | Q23: Q3 2018 | R23: 2018-10-15 | S23: 2018-11-15 | T23: 2018-12-15 | U23: Q4 2018 | V23: FY 2018
A24: Rent | B24: 18000 | E24: 2018-01-01 | F24: =IF($E24<=F$23, $B24/12, 0) -> 1500 | G24: 1500 | H24: 1500 | I24: =SUM(F24:H24) -> 4500 | J24: =IF($E24<=J$23, $B24/12, 0) -> 1500 | K24: 1500 | L24: 1500 | M24: =SUM(J24:L24) -> 4500 | N24: =IF($E24<=N$23, $B24/12, 0) -> 1500 | O24: 1500 | P24: 1500 | Q24: =SUM(N24:P24) -> 4500 | R24: =IF($E24<=R$23, $B24/12, 0) -> 1500 | S24: 1500 | T24: 1500 | U24: =SUM(R24:T24) -> 4500 | V24: =I24+M24+Q24+U24 -> 18000
A25: Other OpEx related to office | B25: 3600 | E25: 2018-01-01 | F25: 300 | G25: 300 | H25: 300 | I25: 900 | J25: 300 | K25: 300 | L25: 300 | M25: 900 | N25: 300 | O25: 300 | P25: 300 | Q25: 900 | R25: 300 | S25: 300 | T25: 300 | U25: 900 | V25: 3600
A26: Add more | B26: 0 | E26: 2018-01-01 | F26: 0 | G26: 0 | H26: 0 | I26: 0 | J26: 0 | K26: 0 | L26: 0 | M26: 0 | N26: 0 | O26: 0 | P26: 0 | Q26: 0 | R26: 0 | S26: 0 | T26: 0 | U26: 0 | V26: 0
A27: Add more | B27: 0 | E27: 2018-01-01 | F27: 0 | G27: 0 | H27: 0 | I27: 0 | J27: 0 | K27: 0 | L27: 0 | M27: 0 | N27: 0 | O27: 0 | P27: 0 | Q27: 0 | R27: 0 | S27: 0 | T27: 0 | U27: 0 | V27: 0
A28: Total: | B28: =SUM(B24:B27) -> 21600 | F28: =SUM(F24:F25) -> 1800 | G28: 1800 | H28: 1800 | I28: 5400 | J28: 1800 | K28: 1800 | L28: 1800 | M28: 5400 | N28: 1800 | O28: 1800 | P28: 1800 | Q28: 5400 | R28: 1800 | S28: 1800 | T28: 1800 | U28: 5400 | V28: 21600
A31: Marketing:
A32: Title | B32: Annual | E32: Start Date | F32: 2018-01-15 | G32: 2018-02-15 | H32: 2018-03-15 | I32: Q1 2018 | J32: 2018-04-15 | K32: 2018-05-15 | L32: 2018-06-15 | M32: Q2 2018 | N32: 2018-07-15 | O32: 2018-08-15 | P32: 2018-09-15 | Q32: Q3 2018 | R32: 2018-10-15 | S32: 2018-11-15 | T32: 2018-12-15 | U32: Q4 2018 | V32: FY 2018
A33: Acquisition campaigns | B33: 18000 | E33: 2018-04-01 | F33: =IF($E33<=F$32, $B33/12, 0) -> 0 | G33: 0 | H33: 0 | I33: =SUM(F33:H33) -> 0 | J33: =IF($E33<=J$32, $B33/12, 0) -> 1500 | K33: 1500 | L33: 1500 | M33: =SUM(J33:L33) -> 4500 | N33: =IF($E33<=N$32, $B33/12, 0) -> 1500 | O33: 1500 | P33: 1500 | Q33: =SUM(N33:P33) -> 4500 | R33: =IF($E33<=R$32, $B33/12, 0) -> 1500 | S33: 1500 | T33: 1500 | U33: =SUM(R33:T33) -> 4500 | V33: =I33+M33+Q33+U33 -> 13500
A34: Add more | B34: 0 | F34: 0 | G34: 0 | H34: 0 | I34: 0 | J34: 0 | K34: 0 | L34: 0 | M34: 0 | N34: 0 | O34: 0 | P34: 0 | Q34: 0 | R34: 0 | S34: 0 | T34: 0 | U34: 0 | V34: 0
A35: Total: | B35: =SUM(B33:B34) -> 18000 | F35: =SUM(F33:F34) -> 0 | G35: 0 | H35: 0 | I35: 0 | J35: =SUM(J33:J34) -> 1500 | K35: 1500 | L35: 1500 | M35: 4500 | N35: =SUM(N33:N34) -> 1500 | O35: 1500 | P35: 1500 | Q35: 4500 | R35: =SUM(R33:R34) -> 1500 | S35: 1500 | T35: 1500 | U35: 4500 | V35: 13500
A37: Total costs:
A38: Title | B38: Annual | E38: Start Date | F38: 2018-01-15 | G38: 2018-02-15 | H38: 2018-03-15 | I38: Q1 2018 | J38: 2018-04-15 | K38: 2018-05-15 | L38: 2018-06-15 | M38: Q2 2018 | N38: 2018-07-15 | O38: 2018-08-15 | P38: 2018-09-15 | Q38: Q3 2018 | R38: 2018-10-15 | S38: 2018-11-15 | T38: 2018-12-15 | U38: Q4 2018 | V38: FY 2018
A39: Total costs | B39: =B18+B28+B35 -> 439600 | F39: =F18+F28+F35 -> 16333.33333 | G39: =G18+G28+G35 -> 16333.33333 | H39: =H18+H28+H35 -> 16333.33333 | I39: =SUM(F39:H39) -> 49000 | J39: =J18+J28+J35 -> 32366.66667 | K39: =K18+K28+K35 -> 39633.33333 | L39: =L18+L28+L35 -> 39633.33333 | M39: =SUM(J39:L39) -> 111633.3333 | N39: =N18+N28+N35 -> 39633.33333 | O39: =O18+O28+O35 -> 39633.33333 | P39: =P18+P28+P35 -> 39633.33333 | Q39: =SUM(N39:P39) -> 118900 | R39: =R18+R28+R35 -> 39633.33333 | S39: =S18+S28+S35 -> 39633.33333 | T39: =T18+T28+T35 -> 39633.33333 | U39: =SUM(R39:T39) -> 118900 | V39: =I39+M39+Q39+U39 -> 398433.3333

Sheet Charts
A1: Type of cost | B1: Q1 | C1: Q2 | D1: Q3 | E1: Q4 | F1: Total
A2: Salary | B2: =Costs!I18 -> 43600 | C2: =Costs!M18 -> 101733.3333 | D2: =Costs!Q18 -> 109000 | E2: =Costs!U18 -> 109000 | F2: =SUM(B2:E2) -> 363333.3333
A3: Office | B3: =Costs!I28 -> 5400 | C3: =Costs!M28 -> 5400 | D3: =Costs!Q28 -> 5400 | E3: =Costs!U28 -> 5400 | F3: =SUM(B3:E3) -> 21600
A4: Marketing | B4: =Costs!I35 -> 0 | C4: =Costs!M35 -> 4500 | D4: =Costs!Q35 -> 4500 | E4: =Costs!U35 -> 4500 | F4: =SUM(B4:E4) -> 13500
